[Event "87th Tata Steel Masters 2025"]
[White "Sarana,Alexey"]
[Black "Wei,Yi"]
[Site "Wijk aan Zee"]
[Round "2.6"]
[Annotator "TA"]
[Result "1/2-1/2"]
[Date "2025.01.19"]
[WhiteElo "2677"]
[BlackElo "2751"]
[PlyCount "107"]
[TimeControl "60"]

{[%evp 17,107,9,9,6,8,0,9,11,5,0,18,8,7,5,13,0,0,-18,-15,-6,0,0,0,0,0,0,0,-4,0,0,0,0,0,0,0,-6,16,0,0,0,0,0,0,0,0,0,0,-29,0,0,0,0,0,0,0,0,0,0,0,0,0,0,0,0,0,0,0,0,0,0,0,0,0,0,0,0,0,0,0,0,0,0,0,0,0,0,0,0,0,0,0,0]} 1. e4 {[%emt 0:0:3]} e5 {[%emt 0:2:22]} 2. Nf3 {[%emt 0:0:7]} Nc6 {[%emt 0:0:4]} 3. Nc3 {[%emt 0:0:31]} Nf6 {[%emt 0:0:7]} 4. Bb5 {[%emt 0:0:8]} Nd4 {[%emt 0:1:31]} 5. Nxd4 {[%emt 0:0:16]} exd4 {[%emt 0:0:5]} 6. e5 {[%emt 0:0:6]} dxc3 {[%emt 0:0:4]} 7. exf6 {[%emt 0:0:11]} Qxf6 {[%emt 0:0:6]} 8. dxc3 {[%emt 0:0:11]} Bc5 {[%emt 0:14:31]} 9. Qe2+ {[%emt 0:1:2]} Qe6 {[%emt 0:0:38]} 10. Qxe6+ {[%emt 0:0:38]} fxe6 {[%emt 0:0:5]} 11. a4 {[%emt 0:0:7]} a6 {[%emt 0:13:26]} 12. Bd3 {[%emt 0:0:17]} a5 {[%emt 0:0:15]} 13. h4 {[%emt 0:2:40]} O-O {[%emt 0:8:45]} 14. f3 {[%emt 0:1:59]} e5 {[%emt 0:4:15]} 15. Bd2 {[%emt 0:10:30]} d6 {[%emt 0:11:9]} 16. c4 {[%emt 0:11:30]} Bf5 {[%emt 0:9:3]} 17. O-O-O {[%emt 0:3:39]} Bxd3 {[%emt 0:0:53]} 18. cxd3 {[%emt 0:0:1]} h5 {[%emt 0:6:2]} 19. Rhe1 {[%emt 0:1:4]} b6 {[%emt 0:4:18]} 20. Re4 {[%emt 0:0:51]} Rf5 {[%emt 0:0:17]} 21. Rde1 {[%emt 0:5:45]} Raf8 {[%emt 0:4:8]} 22. Bc3 {[%emt 0:1:6]} Rf4 {[%emt 0:5:25]} 23. Bd2 {[%emt 0:0:13]} R4f5 {[%emt 0:0:24]} 24. Bc3 {[%emt 0:0:5]} Bf2 {[%emt 0:5:14]} 25. R1e2 {[%emt 0:1:15]} Bg3 {[%emt 0:0:12]} 26. Be1 {[%emt 0:0:32]} Bf4+ {[%emt 0:7:51]} 27. Bd2 {[%emt 0:0:18]} c5 {[%emt 0:2:22]} 28. Bxf4 {[%emt 0:0:39]} Rxf4 $11 {[%emt 0:0:3][%mdl 4096] Endgame. KRR-KRR} 29. Kd2 {[%emt 0:0:7]} R4f5 {[%emt 0:0:50]} 30. Ke3 {[%emt 0:0:11]} R5f6 {[%emt 0:1:59]} 31. Rf2 {[%emt 0:2:51]} Kf7 {[%emt 0:1:16]} 32. g4 {[%emt 0:2:22]} Kg6 {[%emt 0:4:27]} 33. gxh5+ {[%emt 0:2:4] The position is equal.} Kxh5 {[%emt 0:0:3]} 34. Rg4 {[%emt 0:0:6]} g6 {[%emt 0:0:10]} 35. Rg5+ {[%emt 0:0:18]} Kh6 $1 {[%emt 0:0:20]} (35... Kxh4 $2 36. Rg1 $18 )36. Rg3 {[%emt 0:0:30]} Rf4 {[%emt 0:0:43]} 37. Rh2 {[%emt 0:0:14]} R8f5 {[%emt 0:1:13]} 38. b3 {[%emt 0:1:12]} Rf6 {[%emt 0:1:42]} 39. Rh1 {[%emt 0:0:30]} R6f5 {[%emt 0:1:53]} 40. Rhg1 {[%emt 0:2:45]} Rf6 {[%emt 0:0:6]} (40... Rxh4 $2 {perishes.} 41. Rxg6+ Kh7 42. Rxd6 $18 )41. Rh1 {[%emt 0:53:2]} Rd4 {[%emt 0:7:26]} 42. Rg4 {[%emt 0:0:0]} d5 {[%emt 0:10:22]} 43. Rxd4 {[%emt 0:0:0]} exd4+ {[%emt 0:0:24] KR-KR} 44. Kf2 {[%emt 0:0:0]} dxc4 {[%emt 0:0:26]} 45. bxc4 {[%emt 0:0:0]} Re6 {[%emt 0:0:27]} 46. Rb1 {[%emt 0:0:0]} Kh5 {[%emt 0:3:1]} 47. Kg3 {[%emt 0:0:0]} g5 $1 {[%emt 0:0:5]} 48. hxg5 {[%emt 0:0:0]} Kxg5 {[%emt 0:0:4]} 49. Rb2 {[%emt 0:0:0]} Kf5 {[%emt 0:0:24]} 50. Rb1 {[%emt 0:0:0]} Rg6+ {[%emt 0:1:49]} 51. Kf2 {[%emt 0:0:0]} Rh6 {[%emt 0:0:3] [#] Strongly threatening ...Kf4.} 52. Kg3 {[%emt 0:0:0]} Rg6+ {[%emt 0:0:4]} 53. Kf2 {[%emt 0:0:0]} Rh6 {[%emt 0:0:3] Hoping for ...Kf4.} 54. Kg3 {[%emt 0:0:0] A rather calm draw.   Weighted Error Value: White=0.02 (flawless) /Black=0.02 (flawless) .  Inaccurate:     	White=1     	Black=1      OK:         	White=27    	Black=12     Best:        	White=2     	---        Strong:       	---       	Black=2} 1/2-1/2

[Event "87th Tata Steel Masters 2025"]
[White "Erigaisi,Arjun Kumar"]
[Black "Giri,Anish"]
[Site "Wijk aan Zee"]
[Round "2.7"]
[Annotator "TA"]
[Result "1/2-1/2"]
[Date "2025.01.19"]
[WhiteElo "2801"]
[BlackElo "2731"]
[PlyCount "101"]
[TimeControl "60"]

{[%evp 13,101,22,21,10,18,-16,-16,-10,-10,-12,13,-5,0,0,0,0,0,0,56,62,60,58,47,37,48,44,40,45,85,69,70,90,72,75,79,79,89,81,91,89,89,89,112,97,142,117,126,104,165,133,133,103,123,96,102,87,102,83,119,86,88,88,137,88,108,88,76,91,124,26,60,55,36,61,36,0,0,0,74,27,34,28,30,16,10,0,38,0,19,0]} 1. e4 {[%emt 0:0:7]} c5 {[%emt 0:0:5]} 2. Nf3 {[%emt 0:0:5]} d6 {[%emt 0:0:3]} 3. d4 {[%emt 0:0:6]} cxd4 {[%emt 0:0:3]} 4. Nxd4 {[%emt 0:0:5]} Nf6 {[%emt 0:0:4]} 5. Nc3 {[%emt 0:0:5]} a6 {[%emt 0:0:2]} 6. Be2 {[%emt 0:0:6]} e5 {[%emt 0:0:10]} 7. Nb3 {[%emt 0:0:6]} Be7 {[%emt 0:0:5]} 8. Qd3 {[%emt 0:0:11] B92: Sicilian Najdorf: 6 Be2.} Be6 {[%emt 0:4:14]} 9. Nd5 $1 {[%emt 0:0:14][%mdl 4] outshines the older 9.0-0.} Nxd5 {[%emt 0:1:57]} 10. exd5 {[%emt 0:0:6]} Bc8 {[%emt 0:0:5]} 11. a4 {[%emt 0:0:16]} a5 {[%emt 0:3:22]} 12. O-O {[%emt 0:0:28]} O-O {[%emt 0:0:45]} 13. f4 {[%emt 0:0:45]} Nd7 {[%emt 0:1:30]} 14. Kh1 {[%emt 0:0:23]} b6 $146 {[%emt 0:7:4]} (14... Bf6 15. f5 Bg5 16. Be3 b6 17. Nd2 f6 18. b3 Ra7 19. Rae1 Ba6 20. c4 Bc8 {1-0 Oparin,G (2667)-Mendonca,L (2603) FRA-chT Top 16 GpB 2023 (4.4)} )15. Qd1 {[%emt 0:1:44]} Ba6 {[%emt 0:13:48]} (15... Qc7 $11 )16. Bxa6 $14 {[%emt 0:4:32]} Rxa6 {[%emt 0:0:27]} 17. fxe5 {[%emt 0:8:54]} dxe5 {[%emt 0:1:51]} 18. d6 {[%emt 0:2:8][%cal Yd1e2]} Bg5 {[%emt 0:0:23]} 19. Bxg5 {[%emt 0:9:27]} Qxg5 {[%emt 0:0:13]} 20. Qd5 {[%emt 0:0:5]} Qg4 {[%emt 0:27:20]} 21. Nd2 {[%emt 0:11:54]} Qe6 {[%emt 0:1:41]} 22. Qxe6 {[%emt 0:0:17]} fxe6 {[%emt 0:0:4]} 23. Rxf8+ {[%emt 0:8:11]} Kxf8 {[%emt 0:0:9][%mdl 4096] Endgame KRN-KRN} 24. Nc4 {[%emt 0:0:5]} Ra8 {[%emt 0:0:54]} 25. Kg1 {[%emt 0:0:51]} Kf7 {[%emt 0:9:15]} 26. Kf2 {[%emt 0:10:54]} Rc8 {[%emt 0:2:51]} 27. b3 {[%emt 0:0:6]} Kg6 {[%emt 0:0:10]} 28. Ke3 {[%emt 0:3:23]} Rf8 {[%emt 0:3:37]} 29. g3 {[%emt 0:3:43]} h5 {[%emt 0:2:7]} 30. Rd1 {[%emt 0:2:24]} Kg5 {[%emt 0:3:28]} (30... Rc8 $16 {was worth a try.} )31. h3 {[%emt 0:7:43]} Kg6 {[%emt 0:1:36]} 32. Ke2 {[%emt 0:4:42]} Rc8 {[%emt 0:0:47]} 33. Rf1 {[%emt 0:2:44]} Rc5 {[%emt 0:0:6]} 34. Kd3 {[%emt 0:2:5] White has more active pieces.} Rd5+ {[%emt 0:1:9]} 35. Kc3 {[%emt 0:0:56]} Rc5 {[%emt 0:2:29]} 36. b4 {[%emt 0:7:27]} axb4+ {[%emt 0:0:9]} 37. Kxb4 {[%emt 0:0:4][%cal Yc4b6]} Rc8 {[%emt 0:3:2] [#]} (37... Rc6 $142 38. Rf2 e4 )38. Ra1 {[%emt 0:1:53]} (38. g4 $1 {[%cal Rg4h5] gxh5+ would now be deadly.} hxg4 39. hxg4 )Kf5 $16 {[%emt 0:7:4]} 39. a5 {[%emt 0:3:44]} bxa5+ {[%emt 0:0:13]} 40. Rxa5 {[%emt 0:0:6]} Ke4 {[%emt 0:1:58] [#]} 41. Ra7 {[%emt 0:50:53]} ({White must play} 41. Rb5 $1 $16 )Rb8+ {[%emt 1:3:51]} 42. Kc3 {[%emt 0:2:1]} Rd8 {[%emt 0:0:0]} 43. Rc7 {[%emt 0:0:0]} Nf6 $1 {[%emt 0:0:0]} 44. Rxg7 {[%emt 0:0:0]} (44. Kb4 $5 )Nd5+ $1 {[%emt 0:0:0]} 45. Kd2 {[%emt 0:0:0]} Kd4 {[%emt 0:0:0]} (45... Nb6 $1 $11 {keeps the balance.} 46. Nxb6 (46. Rc7 Nxc4+ 47. Rxc4+ Kd5 $14 )Rxd6+ 47. Kc1 Rxb6 )46. Na3 {[%emt 0:0:0]} ({White should play} 46. Rc7 $16 )Nc3 $11 {[%emt 0:0:0]} 47. d7 {[%emt 0:0:0]} e4 {[%emt 0:0:0]} 48. Ke1 {[%emt 0:0:0]} Kc5 {[%emt 0:0:0]} 49. Kd2 {[%emt 0:0:0]} Kd4 {[%emt 0:0:0]} 50. Ke1 {[%emt 0:0:0]} Kc5 {[%emt 0:0:0]} 51. Kd2 {[%emt 0:0:0] White really could win this.   Weighted Error Value: White=0.17 (very precise) /Black=0.13 (very precise)   Mistake:       	White=3     	Black=4      Inaccurate:     	White=2     	Black=5      OK:         	White=11    	Black=18     Best:        	White=2     	Black=2      Strong:       	---       	Black=2} 1/2-1/2

[Event "87th Tata Steel Masters 2025"]
[White "Van Foreest,Jorden"]
[Black "Sarana,Alexey"]
[Site "Wijk aan Zee"]
[Round "3.1"]
[Annotator "TA"]
[Result "1/2-1/2"]
[Date "2025.01.20"]
[WhiteElo "2680"]
[BlackElo "2677"]
[PlyCount "83"]
[TimeControl "60"]

{[%evp 9,83,0,0,0,0,0,0,-6,0,-9,-1,-7,0,0,11,1,0,-6,12,-8,0,0,0,0,0,0,0,0,0,0,0,0,0,-5,11,14,15,27,16,0,5,0,20,17,18,18,17,17,18,24,23,18,21,21,21,22,43,33,43,43,43,43,43,43,43,43,43,43,43,21,26,28,29,8,13,0]} 1. e4 {[%emt 0:0:12]} c5 {[%emt 0:0:15]} 2. Nf3 {[%emt 0:0:14]} d6 {[%emt 0:0:6]} 3. Bc4 {[%emt 0:0:13]} Nf6 {[%emt 0:0:39]} 4. d3 {[%emt 0:0:23]} a6 {[%emt 0:5:37]} 5. a4 {[%emt 0:0:52]} e6 {[%emt 0:0:24]} 6. O-O {[%emt 0:1:25]} Be7 {[%emt 0:6:18]} 7. Nbd2 {[%emt 0:2:42][%cal Yb1d2,Yd2f1,Yf1g3][%mdl 32]} b6 {[%emt 0:2:36]} 8. Re1 {[%emt 0:2:15]} Bb7 {[%emt 0:1:27]} 9. Ba2 {[%emt 0:4:11]} Nc6 {[%emt 0:5:21]} 10. c3 {[%emt 0:2:8]} Qc7 {[%emt 0:0:25]} 11. Nf1 {[%emt 0:3:33]} Rc8 {[%emt 0:10:29]} 12. Ng3 {[%emt 0:1:43]} O-O {[%emt 0:1:32]} 13. h3 {[%emt 0:3:32]} b5 {[%emt 0:4:22]} 14. Bb1 {[%emt 0:9:15]} b4 {[%emt 0:2:18]} 15. Bg5 {[%emt 0:13:32]} a5 {[%emt 0:5:9]} 16. d4 {[%emt 0:5:51]} bxc3 {[%emt 0:0:31]} 17. bxc3 {[%emt 0:0:10]} cxd4 {[%emt 0:0:6]} 18. cxd4 {[%emt 0:0:34]} Nb4 {[%emt 0:1:12]} 19. Qd2 {[%emt 0:2:35]} Qc3 {[%emt 0:8:58]} 20. Qxc3 {[%emt 0:1:58]} Rxc3 {[%emt 0:0:10]} 21. d5 {[%emt 0:0:4]} Rfc8 {[%emt 0:15:27]} 22. Bd2 {[%emt 0:2:42]} R3c4 {[%emt 0:6:2]} 23. dxe6 {[%emt 0:4:36]} fxe6 {[%emt 0:0:10]} 24. Bxb4 {[%emt 0:0:39]} Rxb4 {[%emt 0:1:10]} ({Much weaker is} 24... axb4 $6 25. Ba2 $16 )25. Ba2 {[%emt 0:0:10]} d5 {[%emt 0:0:35]} 26. exd5 {[%emt 0:3:55]} Bxd5 {[%emt 0:7:53]} 27. Rxe6 {[%emt 0:8:10]} Rxa4 {[%emt 0:2:40] Strongly threatening ...Kf8.} 28. Rxe7 {[%emt 0:0:25] Hoping for Bxd5+.} Rxa2 {[%emt 0:0:5]} 29. Rxa2 {[%emt 0:0:10]} Bxa2 {[%emt 0:0:3]} 30. Ra7 {[%emt 0:5:51] Prevents Ra8.} Bd5 {[%emt 0:1:6]} 31. Rxa5 {[%emt 0:0:9]} Bxf3 {[%emt 0:0:14]} 32. gxf3 $11 {[%emt 0:0:6][%cal Yg2f3,Yf3f4,Yf4f5][%mdl 4128] Endgame KRN-KRN. White is a pawn up.} Rf8 {[%emt 0:1:7]} 33. Kg2 {[%emt 0:0:19]} h6 {[%emt 0:2:14]} 34. Nf5 {[%emt 0:2:10]} Kh7 {[%emt 0:0:34]} 35. Ne3 {[%emt 0:0:34]} Rf7 {[%emt 0:0:20]} 36. f4 {[%emt 0:0:24]} Rc7 {[%emt 0:0:18]} 37. Kf3 {[%emt 0:0:17]} Rb7 {[%emt 0:0:4]} 38. f5 {[%emt 0:0:20]} Rb3 {[%emt 0:0:46]} 39. Kg2 {[%emt 0:0:43]} Rb4 {[%emt 0:0:9]} 40. Rc5 {[%emt 0:2:7]} Ra4 {[%emt 0:0:31]} 41. f3 {[%emt 0:50:40]} Nh5 {[%emt 0:50:50]} 42. Kf2 {[%emt 0:2:20]} 1/2-1/2

[Event "87th Tata Steel Masters 2025"]
[White "Wei,Yi"]
[Black "Keymer,Vincent"]
[Site "Wijk aan Zee"]
[Round "3.2"]
[Annotator "TA"]
[Result "1/2-1/2"]
[Date "2025.01.20"]
[WhiteElo "2751"]
[BlackElo "2733"]
[PlyCount "53"]
[TimeControl "60"]

{[%evp 9,53,18,25,21,28,17,16,23,45,0,17,21,9,6,16,4,26,16,26,0,0,6,23,-13,-29,-74,-13,-21,0,0,0,-19,14,0,0,0,0,0,0,0,0,0,0,0,0,0]} 1. e4 {[%emt 0:0:7]} e5 {[%emt 0:0:3]} 2. Nf3 {[%emt 0:0:9]} Nc6 {[%emt 0:0:5]} 3. Bc4 {[%emt 0:0:11]} Nf6 {[%emt 0:0:5]} 4. d3 {[%emt 0:0:13]} Bc5 {[%emt 0:0:6]} 5. c3 {[%emt 0:0:24]} a5 {[%emt 0:0:5]} 6. O-O {[%emt 0:6:32] White wants to play d4.} d6 {[%emt 0:0:25]} 7. Bg5 {[%emt 0:0:36][%cal Yc1g5,Yg5h4,Yh4g3][%mdl 32]} h6 {[%emt 0:0:16]} 8. Bh4 {[%emt 0:0:6]} Ba7 {[%emt 0:0:9]} 9. Re1 {[%emt 0:8:59]} g5 {[%emt 0:1:38][%cal Yg7g5,Yg5g4][%mdl 32]} 10. Bg3 {[%emt 0:0:21]} h5 {[%emt 0:2:44]} 11. h4 $1 {[%emt 0:11:23]} (11. Nxg5 h4 12. Nxf7 (12. Bxf7+ $2 {too greedy.} Ke7 $19 )hxg3 13. hxg3 (13. Nxh8 $2 gxf2+ 14. Kh1 Ng4 $19 )Qe7 (13... Bxf2+ $2 14. Kxf2 Ng4+ 15. Qxg4 $18 )14. Nxh8 Qh7 $19 )g4 {[%emt 0:0:10]} 12. Ng5 {[%emt 0:8:31]} O-O $1 {[%emt 0:0:11]} 13. Na3 {[%emt 0:0:9][%cal Yd3d4]} Qe7 {[%emt 0:0:11]} 14. d4 {[%emt 0:6:34]} Kg7 {[%emt 0:0:31]} 15. f4 {[%emt 0:13:13]} (15. d5 {simplifies} Nd8 16. Nb5 Ne8 17. Nxa7 Rxa7 18. Be2 )gxf3 {[%emt 0:0:14]} 16. gxf3 {[%emt 0:13:44]} Nh7 {[%emt 0:2:9]} 17. f4 {[%emt 0:7:18] [#]} Bg4 {[%emt 0:40:34]} (17... Nxg5 $1 $17 18. hxg5 exf4 (18... Bg4 19. f5 $19 )19. Bxf4 Ne5 20. Qxh5 Rh8 )18. Be2 $11 {[%emt 0:3:3]} Bxe2 {[%emt 0:10:37]} 19. Qxe2 {[%emt 0:3:44] aiming for Nxh7.} exd4 {[%emt 0:0:10]} 20. Kg2 {[%emt 0:2:9]} dxc3 {[%emt 0:17:16]} 21. Nxh7 {[%emt 0:6:36]} cxb2 {[%emt 0:10:51]} 22. Rad1 {[%emt 0:9:19] Some like it hot} Kxh7 {[%emt 0:0:5]} 23. Qxh5+ {[%emt 0:5:58]} Kg7 {[%emt 0:6:32]} 24. Qg4+ $1 {[%emt 0:1:4]} Kh8 {[%emt 0:0:51]} 25. Qh5+ {[%emt 0:0:3]} Kg7 {[%emt 0:0:17]} 26. Qg4+ {[%emt 0:1:43]} Kh8 {[%emt 0:0:1][%cal Yf7f5] ...f5! is the strong threat.} 27. Qh5+ {[%emt 0:0:45]} 1/2-1/2

[Event "87th Tata Steel Masters 2025"]
[White "Praggnanandhaa,Rameshbabu"]
[Black "Erigaisi,Arjun Kumar"]
[Site "Wijk aan Zee"]
[Round "3.3"]
[Annotator "TA"]
[Result "1-0"]
[Date "2025.01.20"]
[WhiteElo "2741"]
[BlackElo "2801"]
[PlyCount "119"]
[TimeControl "60"]

{[%evp 18,119,18,15,33,7,34,28,22,40,44,34,36,48,42,35,36,20,37,41,63,62,82,60,63,55,59,56,50,52,64,68,79,41,53,50,43,36,47,45,43,34,38,45,43,17,23,9,80,60,92,85,94,60,71,0,95,94,100,100,173,185,172,177,176,178,182,184,177,179,174,177,181,175,197,198,241,241,252,220,289,293,290,280,268,166,460,487,485,463,464,470,771,758,894,860,936,936,29976,29976,29956,6115,29998,29999]} 1. d4 {[%emt 0:0:43]} Nf6 {[%emt 0:0:14]} 2. c4 {[%emt 0:0:6]} e6 {[%emt 0:0:5]} 3. Nf3 {[%emt 0:0:6]} d5 {[%emt 0:0:5]} 4. g3 {[%emt 0:0:5]} dxc4 {[%emt 0:1:13]} 5. Bg2 {[%emt 0:0:18]} c5 {[%emt 0:0:9]} 6. O-O {[%emt 0:2:33]} Nc6 {[%emt 0:0:7]} 7. dxc5 {[%emt 0:5:29]} Qxd1 {[%emt 0:0:9]} 8. Rxd1 {[%emt 0:0:3]} Bxc5 {[%emt 0:0:8]} 9. Nbd2 {[%emt 0:0:5]} c3 {[%emt 0:0:8]} 10. bxc3 {[%emt 0:0:3]} O-O {[%emt 0:0:8]} 11. Ne1 {[%emt 0:3:20]} Bd7 {[%emt 0:8:44]} 12. Rb1 {[%emt 0:11:32]} Na5 {[%emt 0:1:36]} 13. Nb3 {[%emt 0:9:32]} Nxb3 {[%emt 0:12:18]} 14. axb3 {[%emt 0:0:21][%cal Ye1d3]} Bc6 $1 {[%emt 0:0:6]} 15. Bxc6 {[%emt 0:2:8]} bxc6 {[%emt 0:0:25]} 16. Nd3 {[%emt 0:3:52]} Be7 {[%emt 0:4:7]} 17. Be3 {[%emt 0:21:43]} Rfc8 {[%emt 0:35:41][%cal Yf8c8,Yc8c7,Yc7b7][%mdl 32]} 18. Bc5 {[%emt 0:18:37]} Kf8 {[%emt 0:0:58]} 19. Ra1 {[%emt 0:0:53] Black is weak on the dark squares} Rc7 {[%emt 0:15:27]} 20. Kf1 {[%emt 0:6:33]} Nd7 {[%emt 0:2:59]} 21. Bxe7+ {[%emt 0:1:10]} Kxe7 {[%emt 0:0:5]} 22. Ra3 {[%emt 0:1:8]} c5 {[%emt 0:8:35]} 23. c4 {[%emt 0:1:0]} Rb7 {[%emt 0:0:9]} 24. Rda1 {[%emt 0:3:8]} a5 {[%emt 0:5:51]} 25. Ke1 {[%emt 0:4:27][%cal Yd3c1]} Kd6 {[%emt 0:1:24]} 26. Nc1 {[%emt 0:1:42]} (26. Rxa5 Rxa5 27. Rxa5 Rxb3 $11 )Rba7 {[%emt 0:0:52]} 27. Na2 {[%emt 0:0:10]} Kc6 {[%emt 0:1:33]} 28. Nc3 {[%emt 0:0:8]} Nb6 {[%emt 0:0:48]} 29. f4 {[%emt 0:4:58]} Nc8 {[%emt 0:3:15]} 30. Nb5 {[%emt 0:1:53]} Ra6 {[%emt 0:0:5]} 31. Rd1 {[%emt 0:0:21]} Nb6 {[%emt 0:0:50]} 32. Ra2 {[%emt 0:2:27]} Rf8 {[%emt 0:3:4]} (32... a4 $11 {keeps the balance.} )33. Rd6+ $16 {[%emt 0:2:0]} Kb7 {[%emt 0:0:6]} 34. Nc3 {[%emt 0:0:29] White is much more active. The black rooks are passive.} Raa8 {[%emt 0:1:43]} 35. Rad2 {[%emt 0:1:55]} Rfc8 {[%emt 0:1:13]} 36. Ra2 {[%emt 0:1:7]} Rf8 $1 {[%emt 0:1:46]} 37. Rd1 $36 {[%emt 0:1:31][%mdl 2048] Keeping Black busy.} Ra7 {[%emt 0:2:18]} 38. Rda1 {[%emt 0:0:57]} Rfa8 {[%emt 0:0:19]} (38... a4 $16 39. Nxa4 Nxa4 )39. Nb5 $18 {[%emt 0:0:15]} Ra6 {[%emt 0:0:5]} 40. Nd6+ {[%emt 0:0:34]} Kc7 {[%emt 0:0:31]} 41. Nxf7 {[%emt 0:3:18]} Nd7 {[%emt 0:1:38]} 42. Ng5 {[%emt 0:7:32]} Nf6 {[%emt 0:0:21]} 43. Nf3 {[%emt 0:6:35]} Ne4 {[%emt 0:0:44]} 44. Nd2 {[%emt 0:2:29]} Nf6 {[%emt 0:1:57]} 45. Kf2 {[%emt 0:6:51]} Ng4+ {[%emt 0:2:14]} 46. Kg2 {[%emt 0:0:13]} e5 {[%emt 0:0:26]} 47. Ne4 {[%emt 0:5:9]} exf4 {[%emt 0:7:54]} 48. gxf4 {[%emt 0:0:32][%cal Yh2h3] and h3! would now be decisive} Re8 {[%emt 0:2:58]} 49. Nxc5 {[%emt 0:3:58]} Rc6 {[%emt 0:0:24]} 50. Nd3 {[%emt 0:2:5]} Rg6 {[%emt 0:0:17]} 51. h3 {[%emt 0:3:51]} (51. Rxa5 $6 Rxe2+ 52. Kf1 Re3 $16 )Ne3+ $2 {[%emt 0:0:41]} (51... Ne5+ 52. Kf2 Nxd3+ 53. exd3 Rf6 54. Rxa5 Rxf4+ 55. Kg1 (55. Kg3 Rd4 $16 )Re3 56. Rc5+ Kd6 57. Rd5+ Kc6 )52. Kf2 {[%emt 0:1:30]} Rg2+ {[%emt 0:4:46]} 53. Kf3 {[%emt 0:0:19]} Rh2 {[%emt 0:0:11]} 54. Nf2 {[%emt 0:0:42]} ({Much less strong is} 54. Rxa5 Rxh3+ 55. Kf2 Ng4+ 56. Ke1 (56. Kg2 Ree3 $16 )Rh1+ (56... Rxd3 $2 {is the wrong capture.} 57. Ra7+ Kb6 58. b4 $18 )57. Kd2 Rxa1 58. Rxa1 Kb8 $18 )g5 {[%emt 0:0:8]} (54... Nf5 $142 )55. Rxa5 {[%emt 0:3:20]} gxf4 {[%emt 0:0:23]} 56. Ra7+ {[%emt 0:1:32]} Kd6 {[%emt 0:0:8]} 57. Ne4+ {[%emt 0:0:55]} Ke6 {[%emt 0:0:9]} 58. R1a6+ {[%emt 0:0:11]} Ke5 {[%emt 0:0:9]} 59. Ra5+ {[%emt 0:0:9]} Kd4 {[%emt 0:0:10]} 60. Rd7+ {[%emt 0:0:5]} 1-0

[Event "87th Tata Steel Masters 2025"]
[White "Gukesh,Dommaraju"]
[Black "Caruana,Fabiano"]
[Site "Wijk aan Zee"]
[Round "3.4"]
[Annotator "TA"]
[Result "1/2-1/2"]
[Date "2025.01.20"]
[WhiteElo "2777"]
[BlackElo "2803"]
[PlyCount "48"]
[TimeControl "60"]

{[%evp 12,48,30,29,41,23,38,25,23,38,27,27,29,25,27,31,31,2,39,39,38,47,37,40,74,75,65,67,62,53,56,60,62,0,52,0,62,0,41]} 1. d4 {[%emt 0:0:4]} d5 {[%emt 0:0:5]} 2. c4 {[%emt 0:0:30]} e6 {[%emt 0:0:5]} 3. Nf3 {[%emt 0:1:53]} Nf6 {[%emt 0:1:26]} 4. Nc3 {[%emt 0:0:8]} Bb4 {[%emt 0:0:5]} 5. cxd5 {[%emt 0:2:14]} exd5 {[%emt 0:0:15]} 6. Bg5 {[%emt 0:0:7][%cal Yc1g5,Yg5h4,Yh4g3][%mdl 32]} h6 {[%emt 0:0:19]} 7. Bh4 {[%emt 0:0:5]} Bf5 {[%emt 0:1:35]} 8. Qa4+ {[%emt 0:0:16]} Nc6 {[%emt 0:0:5][%cal Yb8c6,Yc6e7,Ye7g6][%mdl 32]} 9. e3 {[%emt 0:0:6][%cal Yf1a6]} g5 {[%emt 0:11:35]} 10. Bg3 {[%emt 0:0:14]} O-O {[%emt 0:0:5]} 11. Bb5 {[%emt 0:0:22]} Bxc3+ {[%emt 0:0:17]} 12. bxc3 {[%emt 0:0:6]} Ne7 {[%emt 0:0:3]} 13. Nd2 {[%emt 0:2:40]} Ng6 {[%emt 0:1:18]} 14. Qd1 {[%emt 0:7:8]} h5 {[%emt 0:15:18][%cal Yh6h5,Yh5h4][%mdl 32]} 15. h3 {[%emt 0:11:15]} c6 {[%emt 0:3:38]} 16. Be2 {[%emt 0:0:54]} h4 {[%emt 0:0:4]} 17. Bh2 {[%emt 0:0:21]} b5 {[%emt 0:1:42]} 18. a4 {[%emt 0:3:22]} a6 {[%emt 0:0:11]} 19. O-O {[%emt 0:2:28]} Re8 {[%emt 0:1:46]} 20. Re1 {[%emt 0:18:35]} Qe7 {[%emt 0:14:52]} 21. Bf3 {[%emt 0:6:12]} Be4 {[%emt 0:23:11]} 22. Be2 {[%emt 0:11:0]} Bf5 {[%emt 0:1:20]} 23. Bf3 {[%emt 0:11:48]} Be4 {[%emt 0:0:11]} 24. Be2 {[%emt 0:2:27]} Bf5 {[%emt 0:0:55]} 1/2-1/2